fUSD/lending_fUSD_20241224
["ID","MTS","AMOUNT","RATE_DAILY","PERIOD"]
[346521163,1735018286349,-500.0,0.00016437,2]
[346521164,1735018286358,-500.0,0.00016437,2]
[346521165,1735018286368,-469.1,0.00016437,2]
[346521166,1735018286377,-500.0,0.00016437,2]
[346521167,1735018286387,-1508.76,0.00016437,2]
[346521168,1735018286396,-500.0,0.00016437,2]
[346521169,1735018286406,-368.21840126,0.00016437,2]
[346521170,1735018286415,-1465.72,0.00016437,2]
[346521171,1735018286425,-500.0,0.00016437,2]
[346521172,1735018286435,-500.0,0.00016437,2]
[346521173,1735018286444,-1465.24,0.00016437,2]
[346521174,1735018286454,-500.0,0.00016437,2]
[346521175,1735018286464,-500.0,0.00016437,2]
[346521176,1735018286473,-2919.0,0.00016437,2]
[346521177,1735018286482,-2253.9,0.00016437,2]
[346521178,1735018286492,-3237.5,0.00016437,2]
[346521179,1735018286501,-554.59,0.00016437,2]
[346521180,1735018286511,-794.47,0.00016437,2]
[346521181,1735018286520,-935.63,0.00016437,2]
[346521182,1735018286529,-500.0,0.00016437,2]
[346521183,1735018286539,-2816.14,0.00016437,2]
[346521184,1735018286548,-500.0,0.00016437,2]
[346521185,1735018286557,-472.51,0.00016437,2]
[346521186,1735018286566,-955.57,0.00016437,2]
[346521187,1735018286575,-500.0,0.00016437,2]
[346521188,1735018286585,-500.0,0.00016437,2]
[346521189,1735018286594,-500.0,0.00016437,2]
[346521190,1735018286603,-908.11,0.00016437,2]
[346521191,1735018286612,-500.0,0.00016437,2]
[346521192,1735018286621,-500.0,0.00016437,2]
[346521193,1735018286631,-1028.08,0.00016437,2]
[346521194,1735018286641,-568.18,0.00016437,2]
[346521195,1735018286650,-683.69,0.00016437,2]
[346521196,1735018286660,-500.0,0.00016437,2]
[346521197,1735018286670,-1115.82,0.00016437,2]
[346521198,1735018286679,-722.75,0.00016437,2]
[346521199,1735018286688,-1499.78,0.00016437,2]
[346521200,1735018286698,-1265.66,0.00016437,2]
[346521201,1735018286708,-500.0,0.00016437,2]
[346521202,1735018286718,-7745.3,0.00016437,2]
[346521203,1735018286727,-500.0,0.00016437,2]
[346521204,1735018286736,-954.82,0.00016437,2]
[346521205,1735018286746,-500.0,0.00016437,2]
[346521206,1735018286755,-500.0,0.00016437,2]
[346521207,1735018286764,-606.0,0.00016437,2]
[346521208,1735018286774,-200.0,0.00016438,2]
[346521209,1735018286783,-200.0,0.00016438,2]
[346521210,1735018286793,-200.0,0.00016438,2]
[346521211,1735018286802,-200.0,0.00016438,2]
[346521212,1735018286811,-200.0,0.00016438,2]
[346521213,1735018286820,-200.0,0.00016438,2]
[346521214,1735018286830,-200.0,0.00016438,2]
[346521215,1735018286840,-200.0,0.00016438,2]
[346521216,1735018286849,-200.0,0.00016438,2]
[346521217,1735018286858,-200.0,0.00016438,2]
[346521218,1735018286867,-500.0,0.00016438,2]
[346521219,1735018286876,-500.0,0.00016438,2]
[346521220,1735018286885,-546.3,0.00016438,2]
[346521221,1735018286895,-500.0,0.00016438,2]
[346521222,1735018286905,-658.36,0.00016438,2]
[346521223,1735018286914,-500.0,0.00016438,2]
[346521224,1735018286923,-500.0,0.00016438,2]
[346521225,1735018286932,-500.0,0.00016438,2]
[346521226,1735018286941,-680.9,0.00016438,2]
[346521227,1735018286951,-500.0,0.00016438,2]
[346521228,1735018286962,-500.0,0.00016438,2]
[346521229,1735018286971,-500.0,0.00016438,2]
[346521230,1735018286982,-501.62,0.00016438,2]
[346521231,1735018286992,-500.0,0.00016438,2]
[346521232,1735018287001,-500.0,0.00016438,2]
[346521233,1735018287010,-500.0,0.00016438,2]
[346521234,1735018287019,-500.0,0.00016438,2]
[346521235,1735018287029,-500.0,0.00016438,2]
[346521236,1735018287109,-500.0,0.00016438,2]
[346521237,1735018287119,-500.0,0.00016438,2]
[346521238,1735018287128,-623.46198603,0.00016438,2]
[346521239,1735018287137,-586.12,0.00016438,2]
[346521240,1735018287150,-500.0,0.00016438,2]
[346521241,1735018287162,-500.0,0.00016438,2]
[346521242,1735018287171,-500.0,0.00016438,2]
[346521243,1735018287181,-500.0,0.00016438,2]
[346521244,1735018287190,-500.0,0.00016438,2]
[346521245,1735018287200,-500.0,0.00016438,2]
[346521246,1735018287211,-500.0,0.00016438,2]
[346521247,1735018287220,-500.71,0.00016438,2]
[346521248,1735018287229,-582.46,0.00016438,2]
[346521249,1735018287239,-500.0,0.00016438,2]
[346521250,1735018287248,-338.64571328,0.00016438,2]
[346521251,1735018287258,-500.0,0.00016438,2]
[346521252,1735018287267,-500.0,0.00016438,2]
[346521253,1735018287276,-584.84,0.00016438,2]
[346521254,1735018287285,-594.1289729,0.00016438,2]
[346521255,1735018287294,-667.98,0.00016438,2]
[346521256,1735018287305,-500.0,0.00016438,2]
[346521257,1735018287314,-500.0,0.00016438,2]
[346521258,1735018287324,-500.0,0.00016438,2]
[346521259,1735018287333,-500.0,0.00016438,2]
[346521260,1735018287342,-175.5960266,0.00016438,2]
[346521261,1735018287352,-500.0,0.00016438,2]
[346521262,1735018287361,-711.57,0.00016438,2]
[346521263,1735018287370,-500.0,0.00016438,2]
[346521264,1735018287379,-500.0,0.00016438,2]
[346521265,1735018287389,-500.0,0.00016438,2]
[346521266,1735018287398,-897.7,0.00016438,2]
[346521267,1735018287407,-500.0,0.00016438,2]
[346521268,1735018287416,-500.0,0.00016438,2]
[346521269,1735018287425,-500.0,0.00016438,2]
[346521270,1735018287434,-500.0,0.00016438,2]
[346521271,1735018287443,-500.0,0.00016438,2]
[346521272,1735018287452,-560.63,0.00016438,2]
[346521273,1735018287462,-668.01,0.00016438,2]
[346521274,1735018287471,-500.0,0.00016438,2]
[346521275,1735018287481,-557.47,0.00016438,2]
[346521276,1735018287490,-500.0,0.00016438,2]
[346521277,1735018287499,-500.0,0.00016438,2]
[346521278,1735018287508,-383.597552,0.00016438,2]
[346521279,1735018287517,-500.0,0.00016438,2]
[346521280,1735018287527,-555.168296,0.00016438,2]
[346521281,1735018287536,-500.0,0.00016438,2]
[346521282,1735018287546,-500.0,0.00016438,2]
[346521283,1735018287555,-946.68,0.00016438,2]
[346521284,1735018287564,-500.0,0.00016438,2]
[346521285,1735018287573,-500.0,0.00016438,2]
[346521286,1735018287582,-500.0,0.00016438,2]
[346521287,1735018287591,-500.0,0.00016438,2]
[346521288,1735018287600,-244.63314529,0.00016438,2]
[346521289,1735018287609,-500.0,0.00016438,2]
[346521290,1735018287618,-592.9,0.00016438,2]
[346521291,1735018287627,-547.28,0.00016438,2]
[346521292,1735018287636,-598.2,0.00016438,2]
[346521293,1735018287645,-520.01,0.00016438,2]
[346521294,1735018287654,-500.0,0.00016438,2]
[346521295,1735018287663,-506.66,0.00016438,2]
[346521296,1735018287672,-500.0,0.00016438,2]
[346521297,1735018287681,-500.0,0.00016438,2]
[346521298,1735018287690,-662.17,0.00016438,2]
[346521299,1735018287699,-500.0,0.00016438,2]
[346521300,1735018287709,-500.0,0.00016438,2]
[346521301,1735018287721,-696.48,0.00016438,2]
[346521302,1735018287730,-500.0,0.00016438,2]
[346521303,1735018287739,-500.0,0.00016438,2]
[346521304,1735018287749,-500.0,0.00016438,2]
[346521305,1735018287758,-518.6,0.00016438,2]
[346521306,1735018287767,-500.0,0.00016438,2]
[346521307,1735018287777,-500.0,0.00016438,2]
[346521308,1735018287786,-1152.77,0.00016438,2]
[346521309,1735018287795,-500.0,0.00016438,2]
[346521310,1735018287804,-500.0,0.00016438,2]
[346521311,1735018287814,-725.31,0.00016438,2]
[346521312,1735018287823,-500.0,0.00016438,2]
[346521313,1735018287831,-586.32,0.00016438,2]
[346521314,1735018287841,-500.0,0.00016438,2]
[346521315,1735018287851,-846.78,0.00016438,2]
[346521316,1735018287860,-500.0,0.00016438,2]
[346521317,1735018287870,-500.0,0.00016438,2]
[346521318,1735018287879,-547.95,0.00016438,2]
[346521319,1735018287888,-713.44,0.00016438,2]
[346521320,1735018287897,-796.84,0.00016438,2]
[346521321,1735018287907,-523.75,0.00016438,2]
[346521322,1735018287917,-500.0,0.00016438,2]
[346521323,1735018287926,-500.0,0.00016438,2]
[346521324,1735018287936,-500.0,0.00016438,2]
[346521325,1735018287945,-500.0,0.00016438,2]
[346521326,1735018287955,-500.0,0.00016438,2]
[346521327,1735018287964,-500.0,0.00016438,2]
[346521328,1735018287974,-500.0,0.00016438,2]
[346521329,1735018287983,-5016.22,0.00016438,2]
[346521330,1735018287993,-1638.06,0.00016438,2]
[346521331,1735018288002,-500.0,0.00016438,2]
[346521332,1735018288011,-551.44,0.00016438,2]
[346521333,1735018288021,-1164.78,0.00016438,2]
[346521334,1735018288030,-500.0,0.00016438,2]
[346521335,1735018288040,-782.49,0.00016438,2]
[346521336,1735018288049,-1583.85,0.00016438,2]
[346521337,1735018288059,-901.71,0.00016438,2]
[346521338,1735018288069,-500.0,0.00016438,2]
[346521339,1735018288079,-1977.81,0.00016438,2]
[346521340,1735018288088,-500.0,0.00016438,2]
[346521341,1735018288097,-509.19,0.00016438,2]
[346521342,1735018288106,-500.0,0.00016438,2]
[346521343,1735018288115,-500.0,0.00016438,2]
[346521344,1735018288125,-500.0,0.00016438,2]
[346521345,1735018288134,-500.0,0.00016438,2]
[346521346,1735018288144,-500.0,0.00016438,2]
[346521347,1735018288156,-792.79,0.00016438,2]
[346521348,1735018288165,-849.68,0.00016438,2]
[346521349,1735018288175,-2088.9,0.00016438,2]
[346521350,1735018288184,-500.0,0.00016438,2]
[346521351,1735018288194,-3066.65,0.00016438,2]
[346521352,1735018288203,-2055.88,0.00016438,2]
[346521353,1735018288213,-500.0,0.00016438,2]
[346521354,1735018288223,-7677.04,0.00016438,2]
[346521355,1735018288232,-543.48,0.00016438,2]
[346521356,1735018288242,-854.97,0.00016438,2]
[346521357,1735018288251,-1395.53,0.00016438,2]
[346521358,1735018288261,-500.0,0.00016438,2]
[346521359,1735018288271,-500.0,0.00016438,2]
[346521360,1735018288280,-3679.71,0.00016438,2]
[346521361,1735018288290,-500.0,0.00016438,2]
[346521362,1735018288299,-1080.57,0.00016438,2]
[346521363,1735018288309,-500.0,0.00016438,2]
[346521364,1735018288318,-1694.03,0.00016438,2]
[346521365,1735018288328,-500.0,0.00016438,2]
[346521366,1735018288338,-1385.02,0.00016438,2]
[346521367,1735018288348,-505.35,0.00016438,2]
[346521368,1735018288357,-500.0,0.00016438,2]
[346521369,1735018288367,-1117.85,0.00016438,2]
[346521370,1735018288377,-705.9,0.00016438,2]
[346521371,1735018288386,-1539.8,0.00016438,2]
[346521372,1735018288396,-500.0,0.00016438,2]
[346521373,1735018288406,-2249.94,0.00016438,2]
[346521374,1735018288415,-500.0,0.00016438,2]
[346521375,1735018288425,-500.0,0.00016438,2]
[346521376,1735018288435,-3833.98,0.00016438,2]
[346521377,1735018288444,-500.0,0.00016438,2]
[346521378,1735018288454,-937.66,0.00016438,2]
[346521379,1735018288463,-500.0,0.00016438,2]
[346521380,1735018288472,-2551.89,0.00016438,2]
[346521381,1735018288481,-586.98,0.00016438,2]
[346521382,1735018288491,-500.0,0.00016438,2]
[346521383,1735018288500,-1335.36,0.00016438,2]
[346521384,1735018288509,-3168.41,0.00016438,2]
[346521385,1735018288519,-500.0,0.00016438,2]
[346521386,1735018288529,-1369.41,0.00016438,2]
[346521387,1735018288539,-575.13,0.00016438,2]
[346521388,1735018288548,-845.43,0.00016438,2]
[346521389,1735018288557,-500.0,0.00016438,2]
[346521390,1735018288566,-887.19,0.00016438,2]
[346521391,1735018288575,-500.0,0.00016438,2]
[346521392,1735018288584,-547.48,0.00016438,2]
[346521393,1735018288594,-716.51,0.00016438,2]
[346521394,1735018288603,-561.45,0.00016438,2]
[346521395,1735018288613,-500.0,0.00016438,2]
[346521396,1735018288622,-500.0,0.00016438,2]
[346521397,1735018288631,-558.02,0.00016438,2]
[346521398,1735018288641,-500.0,0.00016438,2]
[346521399,1735018288650,-500.0,0.00016438,2]
[346521400,1735018288659,-1000.0,0.00016438,2]
[346521401,1735018288669,-500.0,0.00016438,2]
[346521402,1735018288678,-500.0,0.00016438,2]
[346521403,1735018288687,-973.2,0.00016438,2]
[346521404,1735018288697,-3656.76,0.00016438,2]
[346521405,1735018288706,-500.0,0.00016438,2]
[346521406,1735018288715,-997.53,0.00016438,2]
[346521407,1735018288725,-855.77,0.00016438,2]
[346521408,1735018288734,-693.49,0.00016438,2]
[346521409,1735018288744,-500.0,0.00016438,2]
[346521410,1735018288753,-637.35,0.00016438,2]
[346521411,1735018288762,-1739.36,0.00016438,2]
[346521412,1735018288771,-500.0,0.00016438,2]
[346521413,1735018288780,-500.0,0.00016438,2]
[346521414,1735018288789,-705.36,0.00016438,2]
[346521415,1735018288798,-500.0,0.00016438,2]
[346521416,1735018288808,-500.0,0.00016438,2]
[346521417,1735018288817,-1543.65,0.00016438,2]
[346521418,1735018288830,-500.0,0.00016438,2]
[346521419,1735018288839,-820.97,0.00016438,2]
[346521420,1735018288848,-1819.38,0.00016438,2]
[346521421,1735018288858,-4120.74,0.00016438,2]
[346521422,1735018288867,-989.44,0.00016438,2]
[346521423,1735018288875,-910.57,0.00016438,2]
[346521424,1735018288884,-2961.05,0.00016438,2]
[346521425,1735018288893,-500.0,0.00016438,2]
[346521426,1735018288903,-503.58,0.00016438,2]
[346521427,1735018288912,-903.8,0.00016438,2]
[346521428,1735018288921,-596.96,0.00016438,2]
[346521429,1735018288930,-807.94,0.00016438,2]
[346521430,1735018288939,-1456.76,0.00016438,2]
[346521431,1735018288948,-2643.91,0.00016438,2]
[346521432,1735018288957,-1308.53,0.00016438,2]
[346521433,1735018288966,-794.16,0.00016438,2]
[346521434,1735018288975,-1213.29,0.00016438,2]
[346521435,1735018288985,-1676.79,0.00016438,2]
[346521436,1735018288994,-500.0,0.00016438,2]
[346521437,1735018289003,-500.0,0.00016438,2]
[346521438,1735018289012,-1433.69,0.00016438,2]
[346521439,1735018289022,-5281.26,0.00016438,2]
[346521440,1735018289031,-677.19,0.00016438,2]
[346521441,1735018289040,-1372.29,0.00016438,2]
[346521442,1735018289050,-1023.69,0.00016438,2]
[346521443,1735018289059,-680.17,0.00016438,2]
[346521444,1735018289068,-338.91,0.00016438,2]
[346521445,1735018289077,-552.15,0.00016438,2]
[346521446,1735018289086,-705.72,0.00016438,2]
[346521447,1735018289095,-500.0,0.00016438,2]
[346521448,1735018289105,-674.8,0.00016438,2]
[346521449,1735018289114,-4867.25,0.00016438,2]
[346521450,1735018289123,-3213.6,0.00016438,2]
[346521451,1735018289132,-854.26,0.00016438,2]
[346521452,1735018289142,-1660.69,0.00016438,2]
[346521453,1735018289154,-500.0,0.00016438,2]
[346521454,1735018289163,-548.87,0.00016438,2]
[346521455,1735018289172,-826.14,0.00016438,2]
[346521456,1735018289182,-500.0,0.00016438,2]
[346521457,1735018289191,-14771.78,0.00016438,2]
[346521458,1735018289200,-619.38,0.00016438,2]
[346521459,1735018289210,-3293.16,0.00016438,2]
[346521460,1735018289219,-500.0,0.00016438,2]
[346521461,1735018289228,-500.0,0.00016438,2]
[346521462,1735018289237,-527.97,0.00016438,2]
[346521463,1735018289246,-500.0,0.00016438,2]
[346521464,1735018289256,-500.0,0.00016438,2]
[346521465,1735018289265,-464.62559609,0.00016438,2]
[346521466,1735018289274,-1071.77,0.00016438,2]
[346521467,1735018289283,-500.0,0.00016438,2]
[346521468,1735018289292,-500.0,0.00016438,2]
[346521469,1735018289301,-202.95,0.00016438,2]
[346521470,1735018289311,-261.45,0.00016438,2]
[346521471,1735018289319,-150.18148861,0.00016438,2]
[346521472,1735018289328,-150.0,0.00016442,2]
[346521473,1735018289338,-500.0,0.00016442,2]
[346521474,1735018289347,-500.0,0.00016442,2]
[346521475,1735018289356,-500.0,0.00016442,2]
[346521476,1735018289366,-500.0,0.00016446,2]
[346521477,1735018289375,-500.20957409,0.00016446,2]
[346521478,1735018289384,-382.01695203,0.00016446,2]
[346521479,1735018289392,-150.0,0.00016447,2]
[346521480,1735018289401,-150.0,0.00016447,2]
[346521481,1735018289411,-150.0,0.00016447,2]
[346521482,1735018289420,-2075.88434638,0.00016468,2]
[346521483,1735018289429,-150.0,0.0001647,2]
[346521484,1735018289438,-150.0,0.00016476,2]
[346521485,1735018289447,-150.0,0.00016494,2]
[346521486,1735018289456,-150.0,0.00016506,2]
[346521487,1735018289465,-150.0,0.00016511,2]
[346521488,1735018289474,-150.0,0.00016518,2]
[346521489,1735018289483,-150.0,0.00016542,2]
[346521490,1735018289492,-150.0,0.00016546,2]
[346521491,1735018289501,-150.0,0.00016566,2]
[346521492,1735018289510,-150.0,0.00016566,2]
[346521493,1735018289519,-500.0,0.00016574,2]
[346521494,1735018289527,-150.0,0.00016581,2]
[346521495,1735018289536,-1627.96297763,0.00016582,2]
[346521496,1735018289545,-150.0,0.0001659,2]
[346521497,1735018289554,-150.0,0.00016613,2]
[346521498,1735018289563,-150.0,0.00016615,2]
[346521499,1735018289572,-150.0,0.00016625,2]
[346521500,1735018289581,-150.0,0.00016637,2]
[346521501,1735018289591,-150.0,0.0001665,2]
[346521502,1735018289600,-150.0,0.00016661,2]
[346521503,1735018289609,-150.181,0.00016674,2]
[346521504,1735018289618,-246.0541914,0.00016685,2]
[346521505,1735018289627,-159.44136912,0.00016685,2]
[346521506,1735018289637,-228.47752498,0.00016685,2]
[346521507,1735018289646,-152.55444174,0.00016685,2]
[346521508,1735018289655,-232.86432305,0.00016685,2]
[346521509,1735018289665,-224.95775009,0.00016685,2]
[346521510,1735018289674,-500.0,0.00016711,2]
[346521511,1735018289683,-500.0,0.00016711,2]
[346521512,1735018289692,-500.0,0.00016711,2]
[346521513,1735018289701,-500.0,0.00016711,2]
[346521514,1735018289711,-500.0,0.00016711,2]
[346521515,1735018289720,-500.0,0.00016711,2]
[346521516,1735018289729,-500.0,0.00016711,2]
[346521517,1735018289738,-200.0,0.00016711,2]
[346521518,1735018289747,-500.0,0.00016711,2]
[346521519,1735018289757,-535.15,0.00016711,2]
[346521520,1735018289767,-500.0,0.00016711,2]
[346521521,1735018289776,-500.0,0.00016711,2]
[346521522,1735018289785,-609.1,0.00016711,2]
[346521523,1735018289795,-500.0,0.00016711,2]
[346521524,1735018289804,-348.07704465,0.00016711,2]
[346521525,1735018289812,-500.0,0.00016711,2]
[346521526,1735018289821,-500.0,0.00016711,2]
[346521527,1735018289830,-500.0,0.00016711,2]
[346521528,1735018289839,-500.0,0.00016711,2]
[346521529,1735018289848,-500.0,0.00016711,2]
[346521530,1735018289857,-500.0,0.00016711,2]
[346521531,1735018289866,-500.0,0.00016711,2]
[346521532,1735018289875,-500.0,0.00016711,2]
[346521533,1735018289884,-500.0,0.00016711,2]
[346521534,1735018289893,-500.0,0.00016711,2]
[346521535,1735018289904,-500.0,0.00016711,2]
[346521536,1735018289913,-500.0,0.00016711,2]
[346521537,1735018289922,-500.0,0.00016711,2]
[346521538,1735018289931,-500.0,0.00016711,2]
[346521539,1735018289941,-500.0,0.00016711,2]
[346521540,1735018289950,-1508.76,0.00016711,2]
[346521541,1735018289960,-512.14470193,0.00016711,2]
[346521542,1735018289969,-1465.72,0.00016711,2]
[346521543,1735018289978,-500.0,0.00016711,2]
[346521544,1735018289988,-500.0,0.00016711,2]
[346521545,1735018289997,-1465.24,0.00016711,2]
[346521546,1735018290007,-500.0,0.00016711,2]
[346521547,1735018290016,-500.0,0.00016711,2]
[346521548,1735018290026,-2919.0,0.00016711,2]
[346521549,1735018290035,-2253.9,0.00016711,2]
[346521550,1735018290044,-3237.5,0.00016711,2]
[346521551,1735018290054,-554.59,0.00016711,2]
[346521552,1735018290063,-794.47,0.00016711,2]
[346521553,1735018290073,-935.63,0.00016711,2]
[346521554,1735018290082,-500.0,0.00016711,2]
[346521555,1735018290091,-2816.14,0.00016711,2]
[346521556,1735018290100,-500.0,0.00016711,2]
[346521557,1735018290109,-955.57,0.00016711,2]
[346521558,1735018290118,-500.0,0.00016711,2]
[346521559,1735018290127,-500.0,0.00016711,2]
[346521560,1735018290136,-500.0,0.00016711,2]
[346521561,1735018290146,-908.11,0.00016711,2]
[346521562,1735018290159,-500.0,0.00016711,2]
[346521563,1735018290168,-500.0,0.00016711,2]
[346521564,1735018290177,-1028.08,0.00016711,2]
[346521565,1735018290186,-568.18,0.00016711,2]
[346521566,1735018290196,-683.69,0.00016711,2]
[346521567,1735018290205,-500.0,0.00016711,2]
[346521568,1735018290215,-1115.82,0.00016711,2]
[346521569,1735018290224,-722.75,0.00016711,2]
[346521570,1735018290233,-1499.78,0.00016711,2]
[346521571,1735018290244,-1265.66,0.00016711,2]
[346521572,1735018290254,-500.0,0.00016711,2]
[346521573,1735018290263,-7745.3,0.00016711,2]
[346521574,1735018290273,-500.0,0.00016711,2]
[346521575,1735018290282,-954.82,0.00016711,2]
[346521576,1735018290291,-500.0,0.00016711,2]
[346521577,1735018290300,-500.0,0.00016711,2]
[346521578,1735018290310,-183.85,0.00016712,2]
[346521579,1735018290319,-500.0,0.00016712,2]
[346521580,1735018290327,-546.3,0.00016712,2]
[346521581,1735018290336,-500.0,0.00016712,2]
[346521582,1735018290345,-658.36,0.00016712,2]
[346521583,1735018290354,-500.0,0.00016712,2]
[346521584,1735018290363,-500.0,0.00016712,2]
[346521585,1735018290372,-500.0,0.00016712,2]
[346521586,1735018290381,-680.9,0.00016712,2]
[346521587,1735018290390,-500.0,0.00016712,2]
[346521588,1735018290399,-500.0,0.00016712,2]
[346521589,1735018290409,-500.0,0.00016712,2]
[346521590,1735018290418,-501.62,0.00016712,2]
[346521591,1735018290427,-586.12,0.00016712,2]
[346521592,1735018290436,-500.0,0.00016712,2]
[346521593,1735018290446,-623.05519759,0.00016712,2]
[346521594,1735018290455,-500.0,0.00016712,2]
[346521595,1735018290465,-500.0,0.00016712,2]
[346521596,1735018290474,-500.0,0.00016712,2]
[346521597,1735018290484,-500.0,0.00016712,2]
[346521598,1735018290493,-500.0,0.00016712,2]
[346521599,1735018290502,-500.71,0.00016712,2]
[346521600,1735018290511,-582.46,0.00016712,2]
[346521601,1735018290521,-500.0,0.00016712,2]
[346521602,1735018290530,-338.11962277,0.00016712,2]
[346521603,1735018290540,-500.0,0.00016712,2]
[346521604,1735018290549,-584.84,0.00016712,2]
[346521605,1735018290558,-151.0,0.00016712,2]
[346521606,1735018290567,-667.98,0.00016712,2]
[346521607,1735018290576,-500.0,0.00016712,2]
[346521608,1735018290585,-500.0,0.00016712,2]
[346521609,1735018290594,-500.0,0.00016712,2]
[346521610,1735018290603,-500.0,0.00016712,2]
[346521611,1735018290612,-500.0,0.00016712,2]
[346521612,1735018290621,-711.57,0.00016712,2]
[346521613,1735018290630,-500.0,0.00016712,2]
[346521614,1735018290640,-500.0,0.00016712,2]
[346521615,1735018290649,-500.0,0.00016712,2]
[346521616,1735018290658,-897.7,0.00016712,2]
[346521617,1735018290668,-500.0,0.00016712,2]
[346521618,1735018290677,-500.0,0.00016712,2]
[346521619,1735018290686,-500.0,0.00016712,2]
[346521620,1735018290695,-500.0,0.00016712,2]
[346521621,1735018290705,-500.0,0.00016712,2]
[346521622,1735018290716,-560.63,0.00016712,2]
[346521623,1735018290725,-668.01,0.00016712,2]
[346521624,1735018290735,-500.0,0.00016712,2]
[346521625,1735018290745,-557.47,0.00016712,2]
[346521626,1735018290755,-500.0,0.00016712,2]
[346521627,1735018290764,-516.10653881,0.00016712,2]
[346521628,1735018290774,-383.597552,0.00016712,2]
[346521629,1735018290783,-500.0,0.00016712,2]
[346521630,1735018290792,-555.168296,0.00016712,2]
[346521631,1735018290802,-500.0,0.00016712,2]
[346521632,1735018290812,-500.0,0.00016712,2]
[346521633,1735018290821,-946.68,0.00016712,2]
[346521634,1735018290830,-500.0,0.00016712,2]
[346521635,1735018290840,-500.0,0.00016712,2]
[346521636,1735018290850,-500.0,0.00016712,2]
[346521637,1735018290859,-500.0,0.00016712,2]
[346521638,1735018290868,-500.0,0.00016712,2]
[346521639,1735018290878,-592.9,0.00016712,2]
[346521640,1735018290887,-547.28,0.00016712,2]
[346521641,1735018290897,-598.2,0.00016712,2]
[346521642,1735018290908,-520.01,0.00016712,2]
[346521643,1735018290917,-500.0,0.00016712,2]
[346521644,1735018290927,-506.66,0.00016712,2]
[346521645,1735018290936,-500.0,0.00016712,2]
[346521646,1735018290945,-500.0,0.00016712,2]
[346521647,1735018290955,-662.17,0.00016712,2]
[346521648,1735018290965,-500.0,0.00016712,2]
[346521649,1735018290975,-500.0,0.00016712,2]
[346521650,1735018290985,-696.48,0.00016712,2]
[346521651,1735018290994,-500.0,0.00016712,2]
[346521652,1735018291003,-500.0,0.00016712,2]
[346521653,1735018291014,-500.0,0.00016712,2]
[346521654,1735018291024,-518.6,0.00016712,2]
[346521655,1735018291034,-500.0,0.00016712,2]
[346521656,1735018291043,-500.0,0.00016712,2]
[346521657,1735018291053,-113.16203421,0.00016712,2]
[346521658,1735018291398,-1039.60796579,0.00016712,2]
[346521659,1735018291408,-500.0,0.00016712,2]
[346521660,1735018291417,-500.0,0.00016712,2]
[346521661,1735018291427,-725.31,0.00016712,2]
[346521662,1735018291437,-586.32,0.00016712,2]